fUST/lending_fUST_20250630
["ID","MTS","AMOUNT","RATE_DAILY","PERIOD"]
[368647359,1751265034028,-222.7403684,0.00018206,2]
[368647360,1751265034045,-305.2096316,0.00018206,2]
[368647361,1751265034055,-460.0,0.00018206,2]
[368647362,1751265034065,-460.0,0.00018206,2]
[368647363,1751265034074,-460.0,0.00018206,2]
[368647364,1751265034087,-468.62,0.00018206,2]
[368647365,1751265034096,-460.0,0.00018206,2]
[368647366,1751265034105,-560.98375565,0.00018206,2]
[368647367,1751265034115,-460.0,0.00018206,2]
[368647368,1751265034124,-460.0,0.00018206,2]
[368647369,1751265034134,-460.0,0.00018206,2]
[368647370,1751265034145,-464.3809786,0.00018206,2]
[368647371,1751265034157,-313.91498691,0.00018206,2]
[368647378,1751265037938,-460.0,0.00018203,2]
[368647379,1751265037948,-460.0,0.00018204,2]
[368647380,1751265037958,-460.0,0.00018204,2]
[368647381,1751265037968,-146.08501309,0.00018206,2]
[368647382,1751265037977,-500.0,0.00018206,2]
[368647383,1751265037987,-442.57191412,0.00018206,2]
[368647384,1751265037997,-460.0,0.00018206,2]
[368647385,1751265038007,-460.0,0.00018206,2]
[368647386,1751265038016,-411.88095678,0.00018206,2]
[368647387,1751265038026,-477.05467154,0.00018206,2]
[368647388,1751265038036,-460.0,0.00018206,2]
[368647389,1751265038046,-463.98769077,0.00018206,2]
[368647390,1751265038057,-460.0,0.00018206,2]
[368647391,1751265038066,-460.0,0.00018206,2]
[368647392,1751265038076,-460.0,0.00018206,2]
[368647393,1751265038086,-460.0,0.00018206,2]
[368647394,1751265038096,-188.71975373,0.00018206,2]
[368647395,1751265038108,-2740.59024627,0.00018206,2]
[368647396,1751265038117,-460.0,0.00018206,2]
[368647397,1751265038127,-460.0,0.00018206,2]
[368647398,1751265038136,-515.47940428,0.00018206,2]
[368647399,1751265038147,-486.56719486,0.00018206,2]
[368647400,1751265038156,-928.64,0.00018206,2]
[368647401,1751265038166,-460.0,0.00018206,2]
[368647402,1751265038175,-460.0,0.00018206,2]
[368647403,1751265038185,-460.0,0.00018206,2]
[368647404,1751265038194,-460.0,0.00018206,2]
[368647405,1751265038204,-419.22549664,0.00018206,2]
[368647406,1751265038214,-460.0,0.00018206,2]
[368647407,1751265038223,-460.0,0.00018206,2]
[368647408,1751265038234,-460.0,0.00018206,2]
[368647409,1751265038244,-460.0,0.00018206,2]
[368647410,1751265038254,-500.0,0.00018208,2]
[368647411,1751265038264,-328.47870235,0.00018209,2]
[368647412,1751265038276,-131.52129765,0.00018209,2]
[368647413,1751265038287,-369.93628441,0.00018209,2]
[368647414,1751265038297,-330.7853628,0.00018209,2]
[368647415,1751265038308,-129.2146372,0.00018209,2]
[368647416,1751265038319,-460.0,0.00018209,2]
[368647417,1751265038330,-135.53675181,0.00018209,2]
[368647418,1751265038346,-324.46324819,0.00018209,2]
[368647419,1751265038355,-460.0,0.00018209,2]
[368647420,1751265038365,-460.0,0.00018209,2]
[368647421,1751265038376,-460.0,0.00018209,2]
[368647422,1751265038389,-500.0,0.00018209,2]
[368647423,1751265038403,-443.9572966,0.00018209,2]
[368647424,1751265038416,-460.0,0.00018209,2]
[368647425,1751265038429,-245.10983262,0.0001821,2]
[368647426,1751265038442,-460.0,0.0001821,2]
[368647427,1751265038453,-460.0,0.0001821,2]
[368647428,1751265038465,-455.94,0.0001821,2]
[368647429,1751265038478,-460.0,0.0001821,2]
[368647430,1751265038490,-460.0,0.0001821,2]
[368647431,1751265038501,-175.57989928,0.0001821,2]
[368647432,1751265038513,-529.57,0.0001821,2]
[368647433,1751265038525,-475.16601052,0.0001821,2]
[368647434,1751265038538,-465.2776892,0.0001821,2]
[368647435,1751265038550,-460.0,0.0001821,2]
[368647436,1751265038562,-500.0,0.00018303,2]
[368647437,1751265038575,-274.11,0.00018469,3]
[368647438,1751265038587,-822.34,0.00018469,3]
[368647439,1751265038600,-460.0,0.00018477,2]
[368647440,1751265038612,-460.0,0.00018477,2]
[368647441,1751265038623,-1144.88,0.00018477,2]
[368647442,1751265038635,-460.0,0.00018477,2]
[368647443,1751265038647,-1290.05,0.00018478,2]
[368647444,1751265038658,-1678.67,0.00018478,2]
[368647445,1751265038669,-460.0,0.00018478,2]
[368647446,1751265038682,-171.41,0.00018478,2]
[368647447,1751265038695,-460.0,0.00018478,2]
[368647448,1751265038707,-1748.45,0.00018478,2]
[368647449,1751265038718,-460.0,0.00018478,2]
[368647450,1751265038729,-591.19,0.00018478,2]
[368647451,1751265038740,-460.0,0.00018478,2]
[368647452,1751265038750,-460.0,0.00018478,2]
[368647453,1751265038761,-460.0,0.00018478,2]
[368647454,1751265038772,-460.0,0.00018478,2]
[368647455,1751265038783,-1301.76,0.00018478,2]
[368647456,1751265038795,-9700.63,0.00018478,2]
[368647457,1751265038808,-1535.04,0.00018478,2]
[368647458,1751265038820,-460.0,0.00018478,2]
[368647459,1751265038832,-1469.71333385,0.00018478,2]
[368647460,1751265038846,-296.29666615,0.00018478,2]
[368647461,1751265038858,-460.0,0.00018478,2]
[368647462,1751265038871,-252.39549482,0.00018478,2]
[368647463,1751265040381,-227.60335694,0.00018203,2]
[368647471,1751265043027,-353.35574917,0.00018203,2]
[368647472,1751265043039,-215.00788369,0.00018203,2]
[368647473,1751265043050,-207.60450518,0.00018478,2]
[368647474,1751265043061,-460.0,0.00018478,2]
[368647475,1751265043071,-737.6,0.00018478,2]
[368647476,1751265043085,-832.4,0.00018478,2]
[368647477,1751265043096,-333.44186196,0.00018478,2]
[368647485,1751265045972,-460.0,0.00018204,2]
[368647486,1751265045984,-155.10249423,0.00018377,2]
[368647487,1751265045996,-69.34025921,0.00018478,2]
[368647488,1751265046007,-235.55724656,0.00018478,2]
[368647489,1751265046021,-363.82313516,0.00018478,2]
[368647490,1751265046058,-9.72961828,0.00018478,2]
[368647491,1751265046069,-382.4856276,0.00018478,2]
[368647492,1751265046081,-621.1,0.00018478,2]
[368647493,1751265046096,-460.0,0.00018478,2]
[368647494,1751265046106,-708.6,0.00018478,2]
[368647495,1751265046116,-460.0,0.00018478,2]
[368647496,1751265046127,-863.74,0.00018478,2]
[368647497,1751265046138,-460.0,0.00018478,2]
[368647498,1751265046148,-460.0,0.00018478,2]
[368647499,1751265046158,-460.0,0.00018479,2]
[368647500,1751265046169,-460.0,0.00018479,2]
[368647501,1751265046180,-460.0,0.00018479,2]
[368647502,1751265046189,-1382.22,0.00018479,2]
[368647503,1751265046199,-2777.71,0.00018479,2]
[368647504,1751265046208,-692.2,0.00018479,2]
[368647505,1751265046218,-1004.36,0.00018479,2]
[368647506,1751265046228,-468.62,0.0001848,2]
[368647507,1751265046238,-460.0,0.0001848,2]
[368647508,1751265046248,-460.0,0.0001848,2]
[368647509,1751265046258,-538.6125136,0.0001848,2]
[368647510,1751265046267,-460.0,0.0001848,2]
[368647511,1751265046276,-460.0,0.0001848,2]
[368647512,1751265046286,-2929.31,0.0001848,2]
[368647513,1751265046295,-928.64,0.0001848,2]
[368647514,1751265046304,-460.0,0.0001848,2]
[368647515,1751265046313,-150.0,0.00018611,2]
[368647516,1751265046324,-2213.91788988,0.00018653,2]
[368647517,1751265046334,-548.21,0.00018742,3]
[368647518,1751265046542,-460.0,0.00018751,2]
[368647519,1751265046554,-488.01909533,0.00018751,2]
[368647520,1751265046565,-1144.88,0.00018751,2]
[368647521,1751265046574,-1290.05,0.00018752,2]
[368647522,1751265046583,-1678.67,0.00018752,2]
[368647523,1751265046593,-460.0,0.00018752,2]
[368647524,1751265046602,-460.0,0.00018752,2]
[368647525,1751265046611,-1748.45,0.00018752,2]
[368647526,1751265046621,-460.0,0.00018752,2]
[368647527,1751265046630,-591.19,0.00018752,2]
[368647528,1751265046640,-460.0,0.00018752,2]
[368647529,1751265046649,-460.0,0.00018752,2]
[368647530,1751265046658,-1301.76,0.00018752,2]
[368647531,1751265046667,-9700.63,0.00018752,2]
[368647532,1751265046677,-1535.04,0.00018752,2]
[368647533,1751265046686,-460.0,0.00018752,2]
[368647534,1751265046696,-1766.01,0.00018752,2]
[368647535,1751265046706,-460.0,0.00018752,2]
[368647536,1751265046719,-460.0,0.00018752,2]
[368647537,1751265046729,-460.0,0.00018752,2]
[368647538,1751265046738,-737.6,0.00018752,2]
[368647539,1751265046747,-832.4,0.00018752,2]
[368647540,1751265046757,-621.1,0.00018752,2]
[368647541,1751265046767,-460.0,0.00018752,2]
[368647542,1751265046776,-708.6,0.00018752,2]
[368647543,1751265046786,-863.74,0.00018752,2]
[368647544,1751265046797,-460.0,0.00018752,2]
[368647545,1751265046806,-460.0,0.00018752,2]
[368647546,1751265046816,-1382.22,0.00018753,2]
[368647547,1751265046825,-2777.71,0.00018753,2]
[368647548,1751265046835,-692.2,0.00018753,2]
[368647549,1751265046844,-1004.36,0.00018753,2]
[368647550,1751265046853,-468.62,0.00018754,2]
[368647551,1751265046862,-460.0,0.00018754,2]
[368647552,1751265046872,-460.0,0.00018754,2]
[368647553,1751265046881,-460.0,0.00018754,2]
[368647554,1751265046890,-460.0,0.00018754,2]
[368647555,1751265046901,-2929.31,0.00018754,2]
[368647556,1751265046910,-928.64,0.00018754,2]
[368647557,1751265046920,-460.0,0.00018754,2]
[368647558,1751265046930,-460.0,0.00018771,2]
[368647559,1751265046940,-460.0,0.00018771,2]
[368647560,1751265046949,-460.0,0.00018771,2]
[368647561,1751265046961,-273.59,0.00018771,2]
[368647562,1751265046971,-654.96,0.00018771,2]
[368647563,1751265046980,-1310.64,0.00018771,2]
[368647564,1751265046990,-585.91,0.00018771,2]
[368647565,1751265047000,-460.0,0.00018771,2]
[368647566,1751265047009,-1038.1,0.00018771,2]
[368647567,1751265047019,-460.0,0.00018771,2]
[368647568,1751265047028,-500.0,0.00018794,2]
[368647569,1751265047038,-500.0,0.00018826,2]
[368647570,1751265047048,-500.0,0.00018826,2]
[368647571,1751265047058,-500.0,0.00018826,2]
[368647572,1751265047072,-500.0,0.00018826,2]
[368647573,1751265047085,-500.0,0.00018826,2]
[368647574,1751265047095,-500.0,0.00018826,2]
[368647575,1751265047105,-431.69007642,0.00018826,2]
[368647576,1751265047115,-500.0,0.00018826,2]
[368647577,1751265047126,-502.06382381,0.00018826,2]
[368647578,1751265047136,-247.22408996,0.00018826,2]
[368647579,1751265047146,-500.0,0.00018826,2]
[368647580,1751265047155,-500.0,0.00018826,2]
[368647581,1751265047165,-500.0,0.00018826,2]
[368647582,1751265047176,-500.0,0.00018845,2]
[368647583,1751265047185,-500.0,0.00018875,2]
[368647584,1751265047194,-500.0,0.0001888,2]
[368647585,1751265047204,-1947.53570053,0.000189,2]
[368647586,1751265047214,-4483.02681358,0.000189,2]
[368647587,1751265047225,-501.36610691,0.00018914,2]
[368647588,1751265047235,-500.0,0.00018914,2]
[368647589,1751265047244,-500.0,0.00018956,2]
[368647590,1751265047254,-502.40315064,0.00018956,2]
[368647591,1751265047263,-303.00000303,0.00019,2]
[368647592,1751265047272,-460.0,0.00019025,2]
[368647593,1751265047283,-1144.88,0.00019025,2]
[368647594,1751265047292,-1290.05,0.00019026,2]
[368647595,1751265047301,-1678.67,0.00019026,2]
[368647596,1751265047310,-460.0,0.00019026,2]
[368647597,1751265047320,-460.0,0.00019026,2]
[368647598,1751265047329,-1748.45,0.00019026,2]
[368647599,1751265047339,-460.0,0.00019026,2]
[368647600,1751265047348,-591.19,0.00019026,2]
[368647601,1751265047357,-460.0,0.00019026,2]
[368647602,1751265047367,-460.0,0.00019026,2]
[368647603,1751265047376,-1301.76,0.00019026,2]
[368647604,1751265047385,-9700.63,0.00019026,2]
[368647605,1751265047395,-1535.04,0.00019026,2]
[368647606,1751265047405,-460.0,0.00019026,2]
[368647607,1751265047414,-1766.01,0.00019026,2]
[368647608,1751265047423,-460.0,0.00019026,2]
[368647609,1751265047433,-579.58897173,0.00019026,2]
[368647610,1751265047443,-460.0,0.00019026,2]
[368647611,1751265047452,-737.6,0.00019026,2]
[368647612,1751265047462,-832.4,0.00019026,2]
[368647613,1751265047471,-621.1,0.00019026,2]
[368647614,1751265047481,-460.0,0.00019026,2]
[368647615,1751265047491,-708.6,0.00019026,2]
[368647616,1751265047500,-863.74,0.00019026,2]
[368647617,1751265047510,-460.0,0.00019026,2]
[368647618,1751265047519,-460.0,0.00019026,2]
[368647619,1751265047528,-1382.22,0.00019027,2]
[368647620,1751265047538,-2777.71,0.00019027,2]
[368647621,1751265047548,-692.2,0.00019027,2]
[368647622,1751265047557,-1004.36,0.00019027,2]
[368647623,1751265047566,-468.62,0.00019028,2]
[368647624,1751265047575,-460.0,0.00019028,2]
[368647625,1751265047584,-460.0,0.00019028,2]
[368647626,1751265047593,-460.0,0.00019028,2]
[368647627,1751265047602,-460.0,0.00019028,2]
[368647628,1751265047613,-2929.31,0.00019028,2]
[368647629,1751265047624,-928.64,0.00019028,2]
[368647630,1751265047635,-460.0,0.00019028,2]
[368647631,1751265047645,-460.0,0.00019045,2]
[368647632,1751265047655,-654.96,0.00019045,2]
[368647633,1751265047664,-1310.64,0.00019045,2]
[368647634,1751265047674,-585.91,0.00019045,2]
[368647635,1751265047683,-460.0,0.00019045,2]
[368647636,1751265047693,-1038.1,0.00019045,2]
[368647637,1751265047703,-490.71279274,0.00019059,2]
[368647638,1751265047712,-168.0,0.00019072,2]
[368647639,1751265047721,-4483.02681336,0.00019072,2]
[368647640,1751265047731,-25000.0,0.00019091,2]
[368647641,1751265047741,-5000.0,0.00019091,2]
[368647642,1751265047751,-207.4,0.00019091,2]
[368647643,1751265047760,-690.642,0.00019091,2]
[368647644,1751265047769,-716.195754,0.00019146,2]
[368647645,1751265047778,-428.631881,0.00019178,2]
[368647646,1751265047788,-17225.12927895,0.000192,2]
[368647647,1751265047797,-742.6949969,0.00019201,2]
[368647648,1751265047807,-2213.91788988,0.00019227,2]
[368647649,1751265047816,-4483.02681336,0.00019245,2]
[368647650,1751265047826,-770.17471178,0.00019256,2]
[368647651,1751265047835,-500.0,0.00019267,2]
[368647652,1751265047844,-1144.88,0.00019299,2]
[368647653,1751265047854,-10329.0,0.000193,2]
[368647654,1751265047863,-1290.05,0.000193,2]
[368647655,1751265047873,-1678.67,0.000193,2]
[368647656,1751265047882,-460.0,0.000193,2]
[368647657,1751265047892,-460.0,0.000193,2]
[368647658,1751265047903,-1748.45,0.000193,2]
[368647659,1751265047914,-460.0,0.000193,2]
[368647660,1751265047923,-591.19,0.000193,2]
[368647661,1751265047932,-460.0,0.000193,2]
[368647662,1751265047942,-460.0,0.000193,2]
[368647663,1751265047952,-1301.76,0.000193,2]
[368647664,1751265047961,-9700.63,0.000193,2]
[368647665,1751265047971,-1535.04,0.000193,2]
[368647666,1751265047980,-460.0,0.000193,2]
[368647667,1751265047990,-1766.01,0.000193,2]
[368647668,1751265047999,-460.0,0.000193,2]
[368647669,1751265048009,-460.0,0.000193,2]
[368647670,1751265048018,-832.4,0.000193,2]
[368647671,1751265048027,-737.6,0.000193,2]
[368647672,1751265048037,-621.1,0.000193,2]
[368647673,1751265048047,-460.0,0.000193,2]
[368647674,1751265048057,-708.6,0.000193,2]
[368647675,1751265048066,-863.74,0.000193,2]
[368647676,1751265048076,-460.0,0.000193,2]
[368647677,1751265048088,-460.0,0.000193,2]
[368647678,1751265048098,-1382.22,0.00019301,2]
[368647679,1751265048107,-2777.71,0.00019301,2]
[368647680,1751265048118,-692.2,0.00019301,2]
[368647681,1751265048128,-1004.36,0.00019301,2]
[368647682,1751265048139,-468.62,0.00019302,2]
[368647683,1751265048149,-381.98177074,0.00019302,2]
[368647684,1751265048160,-460.0,0.00019302,2]
[368647685,1751265048170,-460.0,0.00019302,2]
[368647686,1751265048180,-460.0,0.00019302,2]
[368647687,1751265048190,-2929.31,0.00019302,2]
[368647688,1751265048199,-928.64,0.00019302,2]
[368647689,1751265048210,-474.67730387,0.00019302,2]
[368647690,1751265048221,-798.67117612,0.00019311,2]
[368647691,1751265048231,-654.96,0.00019319,2]
[368647692,1751265048240,-1310.64,0.00019319,2]
[368647693,1751265048250,-585.91,0.00019319,2]
[368647694,1751265048260,-460.0,0.00019319,2]
[368647695,1751265048269,-1038.1,0.00019319,2]
[368647696,1751265048279,-500.0,0.00019355,2]
[368647697,1751265048289,-828.22200964,0.00019366,2]
[368647698,1751265048299,-500.32182282,0.00019374,2]
[368647699,1751265048309,-809.78369465,0.00019374,2]
[368647700,1751265048319,-501.22139317,0.00019374,2]
[368647701,1751265048329,-500.1469035,0.00019374,2]
[368647702,1751265048339,-1000.0,0.00019374,2]
[368647703,1751265048349,-570.9676424,0.00019374,2]
[368647704,1751265048359,-500.0,0.00019374,2]
[368647705,1751265048368,-500.0,0.00019374,2]
[368647706,1751265048378,-501.12856268,0.00019374,2]
[368647707,1751265048388,-213.84631524,0.0001939,2]
[368647708,1751265048398,-214.99848635,0.0001939,2]
[368647709,1751265048407,-847.41730813,0.0001939,2]
[368647710,1751265048417,-160.0,0.0001939,2]
[368647711,1751265048427,-837.16779106,0.0001939,2]
[368647712,1751265048436,-160.0,0.0001939,2]
[368647713,1751265048446,-230.31346914,0.0001939,2]
[368647714,1751265048455,-160.0,0.0001939,2]
[368647715,1751265048464,-160.0,0.0001939,2]
[368647716,1751265048474,-12569.13231816,0.0001939,2]
[368647717,1751265048483,-1000.0,0.00019393,2]
[368647718,1751265048494,-502.45500882,0.0001941,2]
[368647719,1751265048503,-4483.02681336,0.00019417,2]
[368647720,1751265048512,-858.86622399,0.00019421,2]
[368647721,1751265048522,-500.90077759,0.00019423,2]
[368647722,1751265048532,-1000.0,0.00019428,2]
[368647723,1751265048541,-1015.98801501,0.00019462,2]
[368647724,1751265048551,-500.0,0.00019474,2]
[368647725,1751265048561,-500.0,0.00019474,2]
[368647726,1751265048571,-500.0,0.00019474,2]
[368647727,1751265048581,-201.29531528,0.00019474,2]
[368647728,1751265048591,-890.64427428,0.00019476,2]
[368647729,1751265048600,-150.0,0.00019498,2]
[368647730,1751265048610,-923.59811243,0.00019531,2]
[368647731,1751265048619,-1144.88,0.00019573,2]
[368647732,1751265048628,-1290.05,0.00019574,2]
[368647733,1751265048639,-1678.67,0.00019574,2]
[368647734,1751265048648,-460.0,0.00019574,2]
[368647735,1751265048657,-460.0,0.00019574,2]
[368647736,1751265048666,-1748.45,0.00019574,2]
[368647737,1751265048676,-460.0,0.00019574,2]
[368647738,1751265048686,-591.19,0.00019574,2]
[368647739,1751265048695,-460.0,0.00019574,2]
[368647740,1751265048706,-460.0,0.00019574,2]
[368647741,1751265048714,-1301.76,0.00019574,2]
[368647742,1751265048723,-9700.63,0.00019574,2]
[368647743,1751265048733,-1535.04,0.00019574,2]
[368647744,1751265048742,-460.0,0.00019574,2]
[368647745,1751265048751,-1766.01,0.00019574,2]
[368647746,1751265048761,-460.0,0.00019574,2]
[368647747,1751265048770,-460.0,0.00019574,2]
[368647748,1751265048779,-832.4,0.00019574,2]
[368647749,1751265048788,-737.6,0.00019574,2]
[368647750,1751265048798,-621.1,0.00019574,2]
[368647751,1751265048807,-460.0,0.00019574,2]
[368647752,1751265048816,-708.6,0.00019574,2]
[368647753,1751265048826,-863.74,0.00019574,2]
[368647754,1751265048835,-178.3148477,0.00019574,2]
[368647755,1751265048844,-460.0,0.00019574,2]
[368647756,1751265048853,-1382.22,0.00019575,2]
[368647757,1751265048861,-2777.71,0.00019575,2]
[368647758,1751265048871,-692.2,0.00019575,2]
[368647759,1751265048880,-1004.36,0.00019575,2]
[368647760,1751265048890,-468.62,0.00019576,2]
[368647761,1751265048899,-460.0,0.00019576,2]
[368647762,1751265048909,-460.0,0.00019576,2]
[368647763,1751265048918,-460.0,0.00019576,2]
[368647764,1751265048928,-2929.31,0.00019576,2]
[368647765,1751265048938,-928.64,0.00019576,2]
[368647766,1751265048947,-168.0,0.00019585,2]
[368647767,1751265048957,-957.77124259,0.00019586,2]
[368647768,1751265048966,-4483.02681336,0.0001959,2]
[368647769,1751265048976,-654.96,0.00019593,2]
[368647770,1751265048985,-1310.64,0.00019593,2]
[368647771,1751265048995,-585.91,0.00019593,2]
[368647772,1751265049004,-460.0,0.00019593,2]
[368647773,1751265049014,-1038.1,0.00019593,2]
[368647774,1751265049023,-5000.0,0.00019639,2]
[368647775,1751265049032,-993.20877856,0.00019641,2]
[368647776,1751265049042,-151.46578245,0.00019669,2]
[368647777,1751265049052,-1029.95750337,0.00019696,2]
[368647778,1751265049061,-483.0,0.00019708,2]
[368647779,1751265049071,-1068.065931,0.00019751,2]
[368647780,1751265049083,-4483.02681336,0.00019762,2]
[368647781,1751265049093,-168.0,0.00019791,2]
[368647782,1751265049103,-2213.91788988,0.00019802,2]
[368647783,1751265049112,-1107.58437044,0.00019806,2]
[368647784,1751265049121,-160.0,0.00019812,3]
[368647785,1751265049133,-168.0,0.00019837,2]
[368647786,1751265049142,-548.22,0.00019839,3]
[368647787,1751265049152,-1144.88,0.00019847,2]
[368647788,1751265049162,-1290.05,0.00019848,2]
[368647789,1751265049172,-1678.67,0.00019848,2]
[368647790,1751265049181,-460.0,0.00019848,2]
[368647791,1751265049190,-460.0,0.00019848,2]
[368647792,1751265049201,-1748.45,0.00019848,2]
[368647793,1751265049211,-460.0,0.00019848,2]
[368647794,1751265049220,-591.19,0.00019848,2]
[368647795,1751265049230,-460.0,0.00019848,2]
[368647796,1751265049239,-291.06501077,0.00019848,2]
[368647797,1751265049249,-1301.76,0.00019848,2]
[368647798,1751265049259,-2232.68461922,0.00019848,2]
[368647799,1751265049309,-2495.56342047,0.00019848,2]
[368647800,1751265049320,-4224.19265248,0.00019848,2]
[368647801,1751265079064,-304.81130661,0.00018203,2]
[368647802,1751265359417,10000.0,0.00018106,30]
[368647803,1751265388322,10000.0,0.00018106,15]
[368647804,1751265401796,10000.0,0.00018106,15]
[368647806,1751265599775,159.495389,0.00013699,2]
[368647841,1751266232206,-156.29940976,0.00018103,2]
[368647844,1751266232215,-387.0,0.00018201,2]
[368647847,1751266232224,-181.25588229,0.00018201,2]
[368647850,1751266232236,-294.74411771,0.00018201,2]
[368647854,1751266232245,-300.0,0.00018201,2]
[368647858,1751266232254,-1200.0,0.00018201,2]
[368647862,1751266232264,-460.0,0.00018202,2]
[368647866,1751266232273,-300.42287018,0.00018202,2]
[368647870,1751266232282,-1459.3,0.00018202,2]
[368647874,1751266232291,-1475.74,0.00018202,2]
[368647878,1751266232301,-1544.62,0.00018202,2]
[368647882,1751266232310,-460.0,0.00018202,2]
[368647886,1751266232319,-460.0,0.00018202,2]
[368647889,1751266232328,-1175.08,0.00018202,2]
[368647892,1751266232338,-1445.91,0.00018202,2]
[368647895,1751266232347,-1664.07,0.00018202,2]
[368647898,1751266232356,-460.0,0.00018202,2]
[368647901,1751266232365,-90.7351001,0.00018202,2]
[368648461,1751266238272,-160.0,0.00018202,2]
[368648462,1751266238282,-369.2648999,0.00018202,2]
[368648463,1751266238291,-460.0,0.00018202,2]
[368648464,1751266238301,-391.44404609,0.00018202,2]
[368648465,1751266238312,-68.55595391,0.00018202,2]
[368648466,1751266238322,-536.86790289,0.00018202,2]
[368648467,1751266238334,-255.50209711,0.00018202,2]
[368648468,1751266238343,-496.27564731,0.00018202,2]
[368648469,1751266238355,-526.91435269,0.00018202,2]
[368648470,1751266238364,-460.0,0.00018202,2]
[368648471,1751266238373,-460.0,0.00018202,2]
[368648472,1751266238382,-460.0,0.00018202,2]
[368648473,1751266238391,-460.0,0.00018202,2]
[368648474,1751266238401,-460.0,0.00018203,2]
[368648475,1751266238411,-463.92309868,0.00018203,2]
[368648476,1751266238420,-460.0,0.00018203,2]
[368648477,1751266238432,-460.0,0.00018203,2]
[368648478,1751266238442,-591.62,0.00018203,2]
[368648479,1751266238451,-460.0,0.00018203,2]
[368648480,1751266238460,-29.53500893,0.00018203,2]
[368648481,1751266238473,-430.46499107,0.00018203,2]
[368648482,1751266238483,-460.0,0.00018203,2]
[368648483,1751266238492,-460.0,0.00018203,2]
[368648484,1751266238501,-460.0,0.00018203,2]
[368648485,1751266238513,-460.0,0.00018203,2]
[368648486,1751266238522,-524.37,0.00018203,2]
[368648487,1751266238532,-460.0,0.00018203,2]
[368648488,1751266238541,-460.0,0.00018203,2]
[368648489,1751266238550,-777.3,0.00018203,2]
[368648490,1751266238560,-460.0,0.00018203,2]
[368648491,1751266238570,-1024.81,0.00018203,2]
[368648492,1751266238579,-460.0,0.00018203,2]
[368648493,1751266238588,-460.0,0.00018203,2]
[368648494,1751266238599,-460.0,0.00018203,2]
[368648495,1751266238609,-514.08,0.00018203,2]
[368648496,1751266238618,-466.59,0.00018203,2]
[368648497,1751266238627,-414.89492272,0.00018203,2]
[368648498,1751266238639,-2419.85507728,0.00018203,2]
[368648499,1751266238649,-460.0,0.00018203,2]
[368648500,1751266238659,-460.0,0.00018203,2]
[368648501,1751266238668,-460.0,0.00018203,2]
[368648502,1751266238678,-509.85,0.00018203,2]
[368648503,1751266238687,-460.0,0.00018203,2]
[368648504,1751266238696,-188.11273637,0.00018203,2]
[368648505,1751266238708,-271.88726363,0.00018203,2]
[368648506,1751266238717,-460.0,0.00018203,2]
[368648507,1751266238727,-460.0,0.00018203,2]
[368648508,1751266238736,-872.89,0.00018203,2]
[368648509,1751266238745,-7846.27,0.00018203,2]
[368648510,1751266238754,-637.31,0.00018203,2]
[368648511,1751266238763,-460.0,0.00018203,2]
[368648512,1751266238773,-665.04,0.00018203,2]
[368648513,1751266238783,-460.0,0.00018204,2]
[368648514,1751266238792,-1036.66,0.00018205,2]
[368648515,1751266238801,-460.0,0.00018205,2]